Cogmind - Beta 16.1 @@@ ROGUE MODE // 2026.06.21 @ 23:49:30 Player: Akl Result: Destroyed by H-61 Shepherd with Heavy Assault Cannon Performance ------------- Evolutions (2) 1000 Regions Visited (3) 600 Robots Destroyed (41) 205 Value Destroyed (1233) 1233 Prototype IDs (1) 20 Alien Tech Used (0) 0 Bonus (0) 0 TOTAL SCORE: 3058 Bonus ------- None Cogmind --------- Core Integrity 0/550 Matter 206/300 Energy 100/100 System Corruption 0% Temperature Warm (131) Movement Core (50) Location -8/Materials Parts ------- > --- POWER (2) -------- (None) > --- PROPULSION (2) --- (None) > --- UTILITY (5) ------ Terrain Scan Processor Improved Targeting Computer > --- WEAPON (2) ------- (None) > --- INVENTORY (5) ---- (None) Peak State ------------ > --- POWER ------------ Light Ion Engine Light Ion Engine > --- PROPULSION ------- Carbon-fiber Leg Airjet > --- UTILITY ---------- Small Storage Unit Terrain Scan Processor Improved Targeting Computer Hardened Light Armor Plating Hardened Light Armor Plating > --- WEAPON ----------- EMP Blaster Grenade Launcher > --- INVENTORY -------- Improved Flight Unit Improved Terrain Scanner Recoil Stabilizer Shock Rifle Beam Rifle Beam Rifle Flak Cannon [Rating: 21] Favorites ----------- Power Light Ion Engine Engine Light Ion Engine Propulsion Compact Wheel Treads Light Treads Leg Aluminum Leg Wheel Compact Wheel Hover Unit Airjet Flight Unit Improved Flight Unit Utility Improved Targeting Computer Device Improved Terrain Scanner Storage Small Storage Unit Processor Improved Targeting Computer Protection Hardened Light Armor Plating Weapon Grenade Launcher Energy Gun EM Pulse Gun Ballistic Gun Shotgun Ballistic Cannon Flak Cannon Launcher Grenade Launcher Build | -11 -10 -9 -8 ------- Run | Yrd Mat Mat Mat Slots Evolved 4 | . . 2 2 Power 1 | . . . 1 Propulsion . | . . . . Utility 3 | . . 2 1 Weapon . | . . . . Parts Attached 39 | 5 7 14 13 Power 7 | 1 1 3 2 Engine 7 | 1 1 3 2 Core . | . . . . Reactor . | . . . . Propulsion 8 | 2 . 3 3 Treads 1 | . . 1 . Leg 3 | . . 2 1 Wheel 2 | 2 . . . Hover 1 | . . . 1 Flight 1 | . . . 1 Utility 10 | 1 2 3 4 Device 2 | . . . 2 Storage 2 | 1 1 . . Processor 4 | . 1 3 . Hackware . | . . . . Protection 2 | . . . 2 Artifact . | . . . . Weapon 14 | 1 4 5 4 Energy Gun 5 | . 2 . 3 Energy Cannon . | . . . . Ballistic Gun 4 | 1 1 2 . Ballistic Cannon 1 | . . . 1 Launcher 4 | . 1 3 . Special Weapon . | . . . . Impact Weapon . | . . . . Slashing Weapon . | . . . . Piercing Weapon . | . . . . Special Melee Weapon . | . . . . Unidentified Prototypes 1 | . . . 1 Parts Lost 21 | . . 4 17 Power 3 | . . . 3 Propulsion 6 | . . 3 3 Utility 5 | . . . 5 Weapon 7 | . . 1 6 Highest Loss Streak 12 | . . 2 12 To Critical Strikes . | . . . . Average Backups 4 | 1 4 5 2 Power . | . 1 . . Propulsion . | . . . . Utility 1 | . 2 2 . Weapon 2 | . 1 2 1 Tool/Special . | . . . . Unused Backups 1 | . 1 . . Power 1 | . 1 . . Propulsion . | . . . . Utility . | . . . . Weapon . | . . . . Tool/Special . | . . . . Average Slot Usage (%) 87 | . 93 93 79 Engine 12 | . 13 10 14 Leg 4 | . . 12 . Wheel 7 | . 26 3 . Hover 2 | . . . 6 Storage 11 | . 17 11 8 Processor 20 | . 7 32 18 Protection 5 | . . . 14 Energy Gun 2 | . 5 1 1 Ballistic Gun 7 | . 7 15 . Launcher 10 | . 13 4 13 Peak Build Rating 21 | 5 9 15 21 Average Rating 12 | 3 7 14 16 On Entrance 5 | . 5 9 6 Avg Prop Armor Cover (%) 4 | . . . 4 Naked Turns . | . . . . Heaviest Build 28 | 12 19 19 28 Greatest Support 32 | 32 32 32 15 Greatest Overweight (x) 9 | 3 5 5 9 Average Overweight (x) . | . . . 2 Largest Inventory Capacity 8 | 8 8 8 8 Average Capacity 7 | 7 8 8 7 Most Carried 8 | 3 8 7 7 Average Carried 4 | 1 5 5 2 Final Capacity 8 | 8 8 8 5 Final Carried 7 | 2 6 7 . Class Distribution -------------------- 100% | Mutant Dominant Class ---------------- Mutant | -10/Materials Mutant | -9/Materials Mutant | -8/Materials Resources | -11 -10 -9 -8 ----------- Run | Yrd Mat Mat Mat Matter Collected 1042 | 229 130 513 170 Remotely . | . . . . Salvage Created 1051 | . 224 389 438 Parts 63 | . 17 25 21 Haulers Intercepted . | . . . . Recyclers Shooed . | . . . . Parts Field Recycled . | . . . . Retrieved Matter . | . . . . Parts Self-Destructed . | . . . . Prevented . | . . . . Parts Restored . | . . . . Kills | -11 -10 -9 -8 ------- Run | Yrd Mat Mat Mat Combat Hostiles Destroyed 30 | . 7 14 9 Guns 11 | . 1 10 . Cannons 3 | . . . 3 AOE 16 | . 6 4 6 Classes Destroyed 9 | . 4 3 2 Worker 2 | . 1 . 1 Builder 1 | . 1 . . Tunneler 1 | . . 1 . Recycler 1 | . . . 1 Watcher 6 | . 2 1 3 Swarmer 9 | . . 6 3 Grunt 13 | . 7 3 3 Sentry 7 | . . 5 2 Hunter 1 | . . . 1 Best Kill Streak 7 | . 3 7 3 Combat Bots Only 6 | . 2 6 3 Max Kills in Single Turn 3 | . 3 3 3 Gunslinging . | . . . . Exploded 3 | . 2 2 3 Melee . | . . . . Uniques/NPCs Destroyed . | . . . . Combat | -11 -10 -9 -8 -------- Run | Yrd Mat Mat Mat Hostile Shots Fired 254 | . 13 86 155 Missed 70 | . 3 27 40 Hits 184 | . 10 59 115 Melee 2 | . . . 2 Projectile 182 | . 10 59 113 Critical Strikes 11 | . 1 . 10 Damage Taken 2846 | . 134 750 1962 Core 822 | . 52 191 579 Absorbed by Shields . | . . . . Core Remaining (%) 77 | 100 79 52 . Volleys Fired 68 | . 13 30 25 Largest 2 | . 2 2 2 Hottest 112 | . 70 70 112 Shots Fired 113 | . 18 59 36 Gun 64 | . 5 47 12 Cannon 9 | . . . 9 Launcher 40 | . 13 12 15 Special . | . . . . Kinetic 51 | . . 42 9 Thermal 15 | . 3 5 7 Explosive 21 | . 13 4 4 Electromagnetic 26 | . 2 8 16 Robot Hit Streak 18 | . 4 17 18 Robot Miss Streak 5 | . 2 2 5 Penetration Max . | . . . . Secondary Targets 2 | . . 2 . Max Gunslinging Chain 1 | . . 1 . Shots Hit Robots 82 | . 6 48 28 Core Hits 82 | . 17 27 38 Critical Kills 1 | . . 1 . Critical Parts Destroyed . | . . . . Critical Strikes 2 | . . 1 1 Burn 1 | . . . 1 Destroy 1 | . . 1 . Melee Attacks . | . . . . Impact . | . . . . Slashing . | . . . . Piercing . | . . . . Sneak Attacks . | . . . . Combat Hostiles . | . . . . Follow-up Attacks . | . . . . Damage Inflicted 3031 | . 721 1136 1174 Guns 765 | . 33 594 138 Cannons 225 | . . . 225 Explosions 2037 | . 688 542 807 Melee . | . . . . Ramming 4 | . . . 4 Kinetic 776 | . . 551 225 Thermal 211 | . 33 43 135 Explosive 1330 | . 688 368 274 Electromagnetic 710 | . . 174 536 Impact . | . . . . Slashing . | . . . . Piercing . | . . . . Highest Corruption . | . . . . Average Corruption . | . . . . Corruption Purged . | . . . . Corruption Blocked . | . . . . Overload Shots . | . . . . Overflow Damage 29 | . . 7 22 Projectiles . | . . . . Explosions 29 | . . 7 22 Melee . | . . . . Knockbacks . | . . . . Impact . | . . . . Kinetic . | . . . . Secondary . | . . . . Self-Inflicted Damage 102 | . 13 18 71 Shots 6 | . 1 1 4 Rammed 2 | . . . 2 Targets Rammed 2 | . . . 2 Kicked . | . . . . Crushed . | . . . . Highest Temperature 162 | . 65 68 162 Average Temperature 40 | . 24 20 50 Received Heat Transfer 1296 | . 84 204 1008 Siege Activations . | . . . . Martial Activations . | . . . . Shielding Activations . | . . . . Robots Disrupted . | . . . . Combat Hostiles . | . . . . Robots Corrupted . | . . . . Combat Hostiles . | . . . . Parts Fried 1 | . . . 1 Impact Corruptions . | . . . . Robots Melted . | . . . . Combat Hostiles . | . . . . Parts Melted . | . . . . Heat Transferred 547 | . 75 100 372 Parts Sabotaged . | . . . . Parts Stolen . | . . . . Parts Stripped . | . . . . Power Chain Reactions 2 | . . . 2 Alert | -11 -10 -9 -8 ------- Run | Yrd Mat Mat Mat Maximum Alert Level 1 | . . 1 1 Low Security (%) 76 | 100 100 66 67 Level 1 23 | . . 33 32 Level 2 . | . . . . Level 3 . | . . . . Level 4 . | . . . . Level 5 . | . . . . High Security . | . . . . Max Security . | . . . . Peak Influence 384 | . 139 238 384 Initial 55 | . . 55 53 Average 107 | . 39 164 106 Influence Increases 1393 | . 309 400 684 Destroy 0b10 Robot/C 600 | . 140 280 180 Destroy 0b10 Robot/NC 55 | . 20 10 25 Destroy Leader 172 | . 24 82 66 Successful Hack 9 | . 2 7 . Disable Machine 30 | . 30 . . Anti-Garrison Action 150 | . . . 150 Destroy Structure 122 | . 78 21 23 Lose Combat Pursuer 255 | . 15 . 240 Influence Decreases 1029 | . 178 402 449 Entered New Map 152 | . . 76 76 Time Decay 667 | . 178 286 203 Lost Part 210 | . . 40 170 Squads Dispatched 8 | . 2 2 4 Investigation 1 | . 1 . . Extermination . | . . . . Reinforcement 5 | . 1 2 2 Assault 2 | . . . 2 Garrison . | . . . . Intercept . | . . . . Searches Triggered . | . . . . Construction Impeded 1 | . . . 1 Haulers Reinforced . | . . . . Active Scanning Responses . | . . . . Cargo Convoy Interrupts . | . . . . Stealth | -11 -10 -9 -8 --------- Run | Yrd Mat Mat Mat Distress Signals 6 | . 1 2 3 Communications Jammed . | . . . . Distress Signals . | . . . . Times Spotted 64 | . 11 19 34 Peak Tracking Total 9 | . 3 7 9 Tactical Retreats 7 | . 1 . 6 Traps | -11 -10 -9 -8 ------- Run | Yrd Mat Mat Mat Traps Triggered 7 | . 5 2 . Indirectly . | . . . . Trap Hack Attempts . | . . . . Triggered . | . . . . Disarmed . | . . . . Reprogrammed . | . . . . Reused . | . . . . Traps Extracted . | . . . . Installed . | . . . . Triggered . | . . . . Machines | -11 -10 -9 -8 ---------- Run | Yrd Mat Mat Mat Machines Disabled 3 | . 2 . 1 Max in Single Turn 1 | . 1 . 1 Garrison Access 1 | . . . 1 Machines Repaired . | . . . . Machines Dismantled . | . . . . Machines Sabotaged . | . . . . Overloaded Fab Kills . | . . . . Hacking | -11 -10 -9 -8 --------- Run | Yrd Mat Mat Mat Machines Accessed 9 | . 2 3 4 Terminals 7 | . 1 3 3 Fabricators . | . . . . Repair Stations . | . . . . Recycling Units 2 | . 1 . 1 Scanalyzers . | . . . . Garrison Access . | . . . . Total Hacks 30 | . 9 12 9 Successful 21 | . 7 7 7 Failed 9 | . 2 5 2 Catastrophic . | . . . . Database Lockouts . | . . . . Manual . | . . . . Terminals 22 | . 3 12 7 Fabricators . | . . . . Repair Stations . | . . . . Recycling Units 8 | . 6 . 2 Scanalyzers . | . . . . Garrison Access . | . . . . Terminal Hacks 16 | . 3 7 6 Record 10 | . 2 3 5 Robot Analysis 1 | . . 1 . Alert Level 3 | . . 2 1 Locate Traps 1 | . 1 . . Dispatch Records 1 | . . 1 . Fabricator Hacks . | . . . . Repair Station Hacks . | . . . . Recycling Unit Hacks 5 | . 4 . 1 Recycle Component 3 | . 2 . 1 Process 1 | . 1 . . Report Inventory 1 | . 1 . . Scanalyzer . | . . . . Garrison Access Hacks . | . . . . Unauthorized Hacks . | . . . . Terminals . | . . . . Fabricators . | . . . . Repair Stations . | . . . . Recycling Units . | . . . . Scanalyzers . | . . . . Garrison Access . | . . . . Data Cores Recovered . | . . . . Used . | . . . . Hacking Detections 7 | . 2 2 3 Full Trace Events 1 | . . 1 . Feedback Events . | . . . . Feedback Blocked . | . . . . Robot Schematics Acquired . | . . . . Robots Built . | . . . . Authchips . | . . . . Time . | . . . . Total Robot Build Rating . | . . . . Part Schematics Acquired . | . . . . Parts Built . | . . . . Authchips . | . . . . Time . | . . . . Total Part Build Rating . | . . . . Part Studies Acquired . | . . . . Parts Repaired . | . . . . Time . | . . . . Parts Recycled 3 | . 2 . 1 Recycled Matter 157 | . 157 . . Retrieved Matter . | . . . . Retrieved Components . | . . . . Parts Scanalyzed . | . . . . Part Schematics Acquired . | . . . . Parts Damaged . | . . . . Bothacking | -11 -10 -9 -8 ------------ Run | Yrd Mat Mat Mat Used RIF Installer . | . . . . Robots Hacked . | . . . . Non-combat . | . . . . Combat . | . . . . Robot Hacks Applied . | . . . . Relay Couplers Released 2 | . . . 2 Machine Destruction 2 | . . . 2 Fabnet Peak Effective % . | . . . . Robots Rewired . | . . . . Allies Hacked . | . . . . Hacks Repelled . | . . . . Allies | -11 -10 -9 -8 -------- Run | Yrd Mat Mat Mat Total Allies . | . . . . Largest Group . | . . . . Highest-Rated Group . | . . . . Highest-Rated Ally . | . . . . Total Orders . | . . . . Ally Attacks . | . . . . Total Damage . | . . . . Kills . | . . . . Allies Corrupted . | . . . . Allies Melted . | . . . . Intel | -11 -10 -9 -8 ------- Run | Yrd Mat Mat Mat Active Infowar (turns) 34 | . . . 34 Terrain 34 | . . . 34 Robot Analysis Total 1 | . . 1 . Derelict Logs Recovered . | . . . . Drone Launches . | . . . . Drone Recoveries . | . . . . Exploration | -11 -10 -9 -8 ------------- Run | Yrd Mat Mat Mat Turns Passed 1795 | 61 420 621 693 Spaces Moved 1081 | 46 349 398 288 Core 69 | 19 4 25 21 Treads 47 | . . 47 . Legs 269 | . . 256 13 Wheels 442 | 27 345 70 . Hover 190 | . . . 190 Flight 64 | . . . 64 Fastest Speed 40 | 50 100 100 40 Average Speed 138 | 107 101 126 204 Slowest Speed 500 | 200 300 300 500 Overloaded Moves . | . . . . Propulsion Burnouts . | . . . . Robots Hopped . | . . . . Potential Cave-ins . | . . . . Cave-ins Triggered . | . . . . Exploration Rate (%) 33 | 3 57 38 35 Regions Visited 3 Branch Regions . Pre-discovered Areas . | . . . . Known Exits Taken . | . . . . Unknown Exits Taken 3 | 1 1 1 . Scrap Searched . | . . . . Spaces Dug . | . . . . Terrain Destroyed 118 | . 79 19 20 Melee . | . . . . Projectile . | . . . . AOE 118 | . 79 19 20 Terrain Rammed . | . . . . Walls Destroyed . | . . . . Machines Disabled . | . . . . Actions | -11 -10 -9 -8 --------- Run | Yrd Mat Mat Mat Total 1255 | 57 392 453 353 Wait 12 | . 3 . 9 Move 1078 | 45 348 397 288 Hop . | . . . . Pick Up 31 | 7 10 7 7 Fast Attach 14 | . 9 2 3 Attach 28 | 5 3 4 16 Detach 3 | . . . 3 Swap 12 | . 3 9 . Drop 7 | . 3 4 . Fire 68 | . 13 30 25 Melee . | . . . . Ram 2 | . . . 2 Kick . | . . . . Crush . | . . . . Escape Stasis . | . . . . Rewire . | . . . . Trap . | . . . . Miscellaneous . | . . . . Route ------- -11/Scrapyard -10/Materials (discovered 2 exits: *Mat / [*Min]) -9/Materials -8/Materials (discovered 1 exit: [*Fac]) History --------- Turn | Location | Event 6 | -11/Scrapyard | Discovered new exit (range 16) 62 | -11/Scrapyard | Entered Materials 306 | -10/Materials | Build established: Mutant 321 | -10/Materials | Discovered new exit (range 16) 449 | -10/Materials | Discovered new exit (range 3) 482 | -10/Materials | Entered another Materials area 482 | -9/Materials | Evolved 2 slots: Utility x2 1084 | -9/Materials | Discovered new exit (range 16) 1103 | -9/Materials | Entered another Materials area 1103 | -8/Materials | Evolved 2 slots: Power x1, Utility x1 1685 | -8/Materials | Core integrity fell below 50% 1737 | -8/Materials | Lost 12 parts (2p2n4u4w) 1757 | -8/Materials | Discovered new exit (range 12) 1788 | -8/Materials | Core integrity fell below 20% 1796 | -8/Materials | Destroyed by H-61 Shepherd with Heavy Assault Cannon Last Messages --------------- reinforcements to Terminal M001. 01757_ EXIT=FOUND 01758_ Knocked back. 01758_ K-01 Serf suffers critical hit (Burn). 01760_ Knocked back. 01761_ Sml. Storage Unit destroyed. 01773_ Y-45 Defender destroyed. 01778_ K-01 Serf collects debris. 01781_ Critical hit (Burn: +37). 01782_ K-01 Serf collects debris. 01784_ T-07 Excavator destroyed. 01784_ G-47 Trooper destroyed. 01785_ Shock Rifle destroyed. 01786_ Deuterium Engine destroyed. 01787_ K-01 Serf collects debris. 01790_ K-01 Serf destroyed. 01791_ Critical hit (Burn: +37). 01793_ G-47 Trooper destroyed. 01794_ Flak Cannon destroyed. 01796_ Imp. Flight Unit destroyed. Map ----- +----------------------------------------------------+ | ?? ?"" """ + #???????????????? | | #???"" """ # ???????????????? | | ##? # ## ######## ???????????????? | | ?? "Y" ?## ##? # ???# % #??????????????? | | ?#?""" ## ##? #????! #??????????????? | | ????#####??## #?? ? #????%* # ??????????????? | | ??????##????# #?#?? #??? [ # # ??????????????? | | ????????????# #???????? / / ??????????????? | | ????????????# #????????G # # ??????????????? | | ############# #?????????? ?# ?? ?????????????? | | #????????????? ????????????????? | | #?? ???????????????????????????? | | #?# ???????????????????????????? | | ##############?# ???????????????????????????? | | #??????????????# ???????????????????????????? | | #??????????????# #??????????????????????????? | | ##????????????## ##?????????????????????????? | | ############## #?????????????????????????? | | #?????????????????????????? | | #?????????????????????????? | | ??????????????????????????? | | ############?# ??????????????????????????? | | #+#####???????????# ###########????????????????? | | #?########### #*!! #????????????????? | | """" #?# # #!%| % #????????????????? | | """" ### """ /w YH=@ #????????????????? | | """" + + "T" # %%g #????????????????? | | """" ### # ###########????????????????? | | """" ######+###### % #??????????????????????????? | | """" # # % #??????????????????????????? | | """" #[[[ + #??????????????????????????? | | #[[[ # #??????????????????????????? | | #######[[??######## #??????????????????????????? | | ??????#???????????# #??????????????????????????? | | ??????????????????# #??????????????????????????? | | ??????????????????# #??????????????????????????? | | ?????????????????? ??????????????????????????? | | ?????????????????? ?????????????????????????? | | ?????????????????? ????????????????????????? | | ??????????????????# ###+???????????????????????? | | ??????????????????# #??????????????????????????? | | ??????????????????? < #??????????????????????????? | | ??????????????????? #??????????????????????????? | | ???????????????????####??????????????????????????? | | ?????????????????????????????????????????????????? | | ?????????????????????????????????????????????????? | | ?????????????????????????????????????????????????? | | ?????????????????????????????????????????????????? | | ?????????????????????????????????????????????????? | | ?????????????????????????????????????????????????? | +----------------------------------------------------+ Best States ------------- Heat Dissipation 31 Energy Generation 15 Energy Capacity 275 Matter Stores 300 Matter Capacity 500 Sight Range 16 Terrain Scan Range 16 Terrain Scan Density 85 Armor Coverage 300 Evasion (%) 62 Targeting Accuracy 18 Recoil Reduction 4 Item Schematics ----------------- None Robot Schematics ------------------ None Fabricated ------------ Nothing Repaired ---------- Nothing Studied --------- None Alien Tech Used ----------------- None Achievements -------------- Hydra Let's See Who's Tougher Oops Challenges ------------ None Game ------ Seed SingularitySuspensionDriver Manual? 0 Play Time 00:33:10 Cumulative 3.6 hours Start 2026.06.21 @ 23:10:37 End 2026.06.21 @ 23:49:30 Sessions 1 Manual Loads 0 Difficulty Rogue Special Mode None Game No. 7 Rogue 7 Adventurer 0 Explorer 0 Win Type - Total 0 Types 0/0/0/0/0/0/0/0/0/0 Lore% 1 Gallery% 7 Achievement% 7 Wizard Run 0 Options --------- Layout 1 ASCII 0 Keyboard 0 Movement Mouse Keybinds 0 Fullscreen 1 Font 24/Smallcaps Map View 50x35 Zoom Use 12% Tactical HUD 1 Map Filters NONE Filters NONE Steam X RUN: 01b2b74b-3907-4e42-8a1e-33b91ea442ed